[Event "2026 Biel Blitz Open"]
[Site "Biel, CH"]
[Date "2026.07.19"]
[Round "1"]
[White "Hirzel, Robin"]
[Black "Gireada, Lucas"]
[Result "0-1"]
[Board "51"]
[TimeControl "180+2"]
[WhiteFideId "1342320"]
[BlackFideId "1373544"]
[WhiteElo "2022"]
[BlackElo "1651"]
[WhiteClock "0:00:35"]
[BlackClock "0:00:28"]
[Variant "Standard"]
[EndDate "2026.07.19"]
[EndTime "11:47:32"]

1. e4 {[%clk 0:03:03]}  c5 {[%clk 0:03:04]} 2. Nc3 {[%clk 0:03:04]}  d6 {[%clk 0:03:05]} 3. Bb5+ {[%clk 0:03:05]}  Bd7 {[%clk 0:03:04]}
4. Bxd7+ {[%clk 0:03:06]}  Qxd7 {[%clk 0:03:02]} 5. f4 {[%clk 0:03:07]}  Nc6 {[%clk 0:03:02]} 6. Nf3 {[%clk 0:03:08]}  g6 {[%clk 0:03:04]}
7. O-O {[%clk 0:03:09]}  Bg7 {[%clk 0:03:05]} 8. d3 {[%clk 0:03:11]}  e6 {[%clk 0:03:02]} 9. Qe1 {[%clk 0:03:12]}  Nge7 {[%clk 0:02:53]}
10. Rb1 {[%clk 0:03:13]}  Nd4 {[%clk 0:02:53]} 11. Nxd4 {[%clk 0:03:08]}  cxd4 {[%clk 0:02:52]} 12. Ne2 {[%clk 0:03:09]}  d5 {[%clk 0:02:39]}
13. e5 {[%clk 0:03:05]}  Nf5 {[%clk 0:02:23]} 14. Qb4 {[%clk 0:02:20]}  Qe7 {[%clk 0:02:23]} 15. Qa4+ {[%clk 0:02:16]}  Qd7 {[%clk 0:02:24]}
16. Qxd7+ {[%clk 0:02:16]}  Kxd7 {[%clk 0:02:25]} 17. g4 {[%clk 0:02:13]}  Ne3 {[%clk 0:02:26]} 18. Bxe3 {[%clk 0:02:14]}  dxe3 {[%clk 0:02:27]}
19. Rf3 {[%clk 0:02:14]}  Bf8 {[%clk 0:02:12]} 20. Rxe3 {[%clk 0:02:14]}  h5 {[%clk 0:01:51]} 21. g5 {[%clk 0:02:14]}  Rc8 {[%clk 0:01:52]}
22. c3 {[%clk 0:02:15]}  Be7 {[%clk 0:01:52]} 23. Kg2 {[%clk 0:02:14]}  b5 {[%clk 0:01:47]} 24. Rc1 {[%clk 0:01:57]}  b4 {[%clk 0:01:45]}
25. c4 {[%clk 0:01:59]}  dxc4 {[%clk 0:01:38]} 26. dxc4 {[%clk 0:01:59]}  Kc7 {[%clk 0:01:31]} 27. Nd4 {[%clk 0:01:57]}  a6 {[%clk 0:01:24]}
28. Nb3 {[%clk 0:01:43]}  Rhd8 {[%clk 0:01:22]} 29. Kf3 {[%clk 0:01:41]}  Rd7 {[%clk 0:01:21]} 30. c5 {[%clk 0:01:04]}  Kc6 {[%clk 0:01:17]}
31. Na5+ {[%clk 0:00:55]}  Kb5 {[%clk 0:01:18]} 32. Nb3 {[%clk 0:00:40]}  a5 {[%clk 0:01:08]} 33. Ke4 {[%clk 0:00:38]}  Rd5 {[%clk 0:00:57]}
34. Nd4+ {[%clk 0:00:33]}  Ka6 {[%clk 0:00:59]} 35. c6 {[%clk 0:00:33]}  Rcd8 {[%clk 0:00:52]} 36. c7 {[%clk 0:00:22]}  Rxd4+ {[%clk 0:00:52]}
37. Kf3 {[%clk 0:00:24]}  Rc8 {[%clk 0:00:49]} 38. a3 {[%clk 0:00:25]}  Rd7 {[%clk 0:00:47]} 39. axb4 {[%clk 0:00:24]}  Rdxc7 {[%clk 0:00:45]}
40. Ra1 {[%clk 0:00:27]}  Bxb4 {[%clk 0:00:40]} 41. Re4 {[%clk 0:00:27]}  Kb5 {[%clk 0:00:38]} 42. Rd1 {[%clk 0:00:28]}  Rc2 {[%clk 0:00:35]} 0-1

[Event "2026 Biel Blitz Open"]
[Site "Biel, CH"]
[Date "2026.07.19"]
[Round "1"]
[White "Koehler, Noe"]
[Black "Mikavica, Mirko"]
[Result "0-1"]
[Board "52"]
[TimeControl "180+2"]
[WhiteFideId "1362488"]
[BlackFideId "908657"]
[WhiteElo "1639"]
[BlackElo "2015"]
[WhiteClock "0:03:02"]
[BlackClock "0:03:02"]
[Variant "Standard"]
[EndDate "2026.07.19"]
[EndTime "11:47:32"]

1. e4 {[%clk 0:03:03]}  d6 {[%clk 0:03:04]} 2. d4 {[%clk 0:03:04]}  Nf6 {[%clk 0:03:03]} 3. Nc3 {[%clk 0:03:05]}  Nbd7 {[%clk 0:03:05]}
4. Nf3 {[%clk 0:03:05]}  e5 {[%clk 0:03:06]} 5. d5 {[%clk 0:03:04]}  c6 {[%clk 0:03:07]} 6. Bc4 {[%clk 0:02:53]}  Be7 {[%clk 0:03:02]}
7. O-O {[%clk 0:02:50]}  O-O {[%clk 0:03:03]} 8. Re1 {[%clk 0:02:51]}  Nb6 {[%clk 0:03:02]} 9. Bb3 {[%clk 0:02:52]}  cxd5 {[%clk 0:03:03]}
10. Nxd5 {[%clk 0:02:47]}  Nbxd5 {[%clk 0:02:58]} 11. exd5 {[%clk 0:02:47]}  Bg4 {[%clk 0:02:50]} 12. h3 {[%clk 0:02:15]}  Bh5 {[%clk 0:02:51]}
13. Bg5 {[%clk 0:01:51]}  e4 {[%clk 0:02:35]} 14. Bxf6 {[%clk 0:01:52]}  Bxf6 {[%clk 0:02:31]} 15. Rxe4 {[%clk 0:01:50]}  Bxb2 {[%clk 0:02:25]}
16. Rb1 {[%clk 0:01:48]}  Bf6 {[%clk 0:02:25]} 17. Re1 {[%clk 0:01:14]}  Qa5 {[%clk 0:02:17]} 18. Qd3 {[%clk 0:01:11]}  Rae8 {[%clk 0:02:06]}
19. Qd2 {[%clk 0:00:46]}  Qc5 {[%clk 0:01:55]} 20. Rxe8 {[%clk 0:00:44]}  Rxe8 {[%clk 0:01:57]} 21. Re1 {[%clk 0:00:45]}  Rf8 {[%clk 0:01:42]}
22. Nh2 {[%clk 0:00:29]}  Bc3 {[%clk 0:01:39]} 23. Qg5 {[%clk 0:00:12]}  Bxe1 {[%clk 0:01:34]} 24. Qxh5 {[%clk 0:00:14]}  Qxf2+ {[%clk 0:01:24]}
25. Kh1 {[%clk 0:00:15]}  Bc3 {[%clk 0:01:22]} 26. Ng4 {[%clk 0:00:13]}  Qe1+ {[%clk 0:01:17]} 27. Kh2 {[%clk 0:00:13]}  Be5+ {[%clk 0:01:17]}
28. Nxe5 {[%clk 0:00:13]}  Qxe5+ {[%clk 0:01:17]} 0-1

[Event "2026 Biel Blitz Open"]
[Site "Biel, CH"]
[Date "2026.07.19"]
[Round "1"]
[White "Guidi, Elia"]
[Black "Python, Noe"]
[Result "0-1"]
[Board "54"]
[TimeControl "180+2"]
[WhiteFideId "1351931"]
[BlackFideId "1337637"]
[WhiteElo "1629"]
[BlackElo "2010"]
[WhiteClock "0:00:10"]
[BlackClock "0:00:16"]
[Variant "Standard"]
[EndDate "2026.07.19"]
[EndTime "11:47:32"]

1. d4 {[%clk 0:03:02]}  d5 {[%clk 0:03:03]} 2. c4 {[%clk 0:03:03]}  e6 {[%clk 0:03:05]} 3. Nc3 {[%clk 0:03:04]}  Nf6 {[%clk 0:03:06]}
4. Nf3 {[%clk 0:03:05]}  a6 {[%clk 0:03:07]} 5. Bg5 {[%clk 0:03:05]}  dxc4 {[%clk 0:03:08]} 6. e4 {[%clk 0:03:06]}  b5 {[%clk 0:03:09]}
7. e5 {[%clk 0:03:07]}  h6 {[%clk 0:03:10]} 8. exf6 {[%clk 0:03:01]}  hxg5 {[%clk 0:03:09]} 9. fxg7 {[%clk 0:03:02]}  Bxg7 {[%clk 0:03:10]}
10. Qc2 {[%clk 0:02:32]}  g4 {[%clk 0:02:51]} 11. Ne5 {[%clk 0:02:19]}  Qxd4 {[%clk 0:02:49]} 12. Ng6 {[%clk 0:01:43]}  fxg6 {[%clk 0:02:29]}
13. Qxg6+ {[%clk 0:01:43]}  Kf8 {[%clk 0:02:30]} 14. Rd1 {[%clk 0:01:39]}  Qe5+ {[%clk 0:02:24]} 15. Be2 {[%clk 0:01:39]}  Nc6 {[%clk 0:02:25]}
16. g3 {[%clk 0:01:30]}  Qf5 {[%clk 0:01:37]} 17. Qxg4 {[%clk 0:00:52]}  Qxg4 {[%clk 0:01:37]} 18. Bxg4 {[%clk 0:00:53]}  Ne5 {[%clk 0:00:52]}
19. Be2 {[%clk 0:00:47]}  Bb7 {[%clk 0:00:47]} 20. O-O {[%clk 0:00:40]}  Ke7 {[%clk 0:00:44]} 21. f4 {[%clk 0:00:29]}  Nf7 {[%clk 0:00:22]}
22. Rfe1 {[%clk 0:00:29]}  Nd6 {[%clk 0:00:16]} 23. Bg4 {[%clk 0:00:30]}  Bc8 {[%clk 0:00:15]} 24. Nd5+ {[%clk 0:00:27]}  Kd7 {[%clk 0:00:11]}
25. Nc3 {[%clk 0:00:19]}  Kc6 {[%clk 0:00:11]} 26. Bxe6 {[%clk 0:00:17]}  Bxe6 {[%clk 0:00:13]} 27. Rxe6 {[%clk 0:00:15]}  Rae8 {[%clk 0:00:13]}
28. Rde1 {[%clk 0:00:13]}  Rxe6 {[%clk 0:00:15]} 29. Rxe6 {[%clk 0:00:13]}  Re8 {[%clk 0:00:15]} 30. Rg6 {[%clk 0:00:00]}  Bd4+ {[%clk 0:00:11]}
31. Kg2 {[%clk 0:00:13]}  Kb7 {[%clk 0:00:11]} 32. Kf3 {[%clk 0:00:12]}  Bxc3 {[%clk 0:00:11]} 33. bxc3 {[%clk 0:00:13]}  Ne4 {[%clk 0:00:12]}
34. Rg5 {[%clk 0:00:10]}  Nxc3 {[%clk 0:00:11]} 35. h4 {[%clk 0:00:08]}  Nxa2 {[%clk 0:00:11]} 36. h5 {[%clk 0:00:09]}  Kb6 {[%clk 0:00:09]}
37. h6 {[%clk 0:00:10]}  c3 {[%clk 0:00:10]} 38. h7 {[%clk 0:00:11]}  Rh8 {[%clk 0:00:11]} 39. Rg6+ {[%clk 0:00:07]}  c6 {[%clk 0:00:11]}
40. Rh6 {[%clk 0:00:05]}  c2 {[%clk 0:00:12]} 41. Rh1 {[%clk 0:00:05]}  c1=Q {[%clk 0:00:12]} 42. Rxc1 {[%clk 0:00:06]}  Nxc1 {[%clk 0:00:13]}
43. g4 {[%clk 0:00:08]}  Rxh7 {[%clk 0:00:14]} 44. g5 {[%clk 0:00:09]}  Kc7 {[%clk 0:00:14]} 45. Kg4 {[%clk 0:00:10]}  Kd7 {[%clk 0:00:15]}
46. f5 {[%clk 0:00:12]}  Ke7 {[%clk 0:00:14]} 47. g6 {[%clk 0:00:13]}  Rh1 {[%clk 0:00:14]} 48. Kg5 {[%clk 0:00:12]}  Rg1+ {[%clk 0:00:14]}
49. Kf4 {[%clk 0:00:12]}  Kf6 {[%clk 0:00:15]} 50. Ke4 {[%clk 0:00:12]}  a5 {[%clk 0:00:16]} 51. g7 {[%clk 0:00:10]}  Rxg7 {[%clk 0:00:16]} 0-1

[Event "2026 Biel Blitz Open"]
[Site "Biel, CH"]
[Date "2026.07.19"]
[Round "2"]
[White "Stefan, Romulus-Cristian"]
[Black "Bu, Xiangzhi"]
[Result "0-1"]
[Board "1"]
[TimeControl "180+2"]
[WhiteFideId "1232835"]
[BlackFideId "8601445"]
[WhiteElo "2048"]
[BlackElo "2719"]
[WhiteTitle "CM"]
[BlackTitle "GM"]
[WhiteClock "0:00:14"]
[BlackClock "0:00:19"]
[Variant "Standard"]
[EndDate "2026.07.19"]
[EndTime "12:13:08"]

1. d4 {[%clk 0:03:03]}  Nf6 {[%clk 0:03:03]} 2. Nf3 {[%clk 0:03:04]}  e6 {[%clk 0:03:04]} 3. Bg5 {[%clk 0:03:05]}  h6 {[%clk 0:03:05]}
4. Bh4 {[%clk 0:03:06]}  d5 {[%clk 0:03:06]} 5. Nbd2 {[%clk 0:03:04]}  c5 {[%clk 0:03:07]} 6. e3 {[%clk 0:03:04]}  Nc6 {[%clk 0:03:07]}
7. c3 {[%clk 0:03:05]}  Qb6 {[%clk 0:03:06]} 8. Rb1 {[%clk 0:03:05]}  cxd4 {[%clk 0:03:05]} 9. exd4 {[%clk 0:03:06]}  Ne4 {[%clk 0:03:03]}
10. Nxe4 {[%clk 0:03:01]}  dxe4 {[%clk 0:03:03]} 11. Nd2 {[%clk 0:03:02]}  Qa5 {[%clk 0:02:35]} 12. Bg3 {[%clk 0:02:35]}  h5 {[%clk 0:02:10]}
13. h4 {[%clk 0:02:27]}  f5 {[%clk 0:01:49]} 14. Bc4 {[%clk 0:02:27]}  Qd8 {[%clk 0:01:42]} 15. Be2 {[%clk 0:02:17]}  g6 {[%clk 0:01:12]}
16. Nc4 {[%clk 0:02:18]}  Be7 {[%clk 0:01:08]} 17. b4 {[%clk 0:02:04]}  a6 {[%clk 0:01:02]} 18. a4 {[%clk 0:02:04]}  O-O {[%clk 0:01:01]}
19. Qd2 {[%clk 0:01:54]}  Kh7 {[%clk 0:00:57]} 20. a5 {[%clk 0:01:37]}  Ra7 {[%clk 0:00:39]} 21. Rd1 {[%clk 0:01:14]}  Bd7 {[%clk 0:00:35]}
22. Nb6 {[%clk 0:01:05]}  Be8 {[%clk 0:00:33]} 23. Qf4 {[%clk 0:00:43]}  Nxb4 {[%clk 0:00:27]} 24. cxb4 {[%clk 0:00:26]}  Bxb4+ {[%clk 0:00:28]}
25. Kf1 {[%clk 0:00:27]}  Bxa5 {[%clk 0:00:30]} 26. Nc4 {[%clk 0:00:28]}  Bb4 {[%clk 0:00:24]} 27. Qe5 {[%clk 0:00:21]}  a5 {[%clk 0:00:20]}
28. d5 {[%clk 0:00:12]}  exd5 {[%clk 0:00:16]} 29. Rxd5 {[%clk 0:00:13]}  Qf6 {[%clk 0:00:17]} 30. Bf4 {[%clk 0:00:11]}  Ra6 {[%clk 0:00:13]}
31. g3 {[%clk 0:00:11]}  Qxe5 {[%clk 0:00:13]} 32. Bxe5 {[%clk 0:00:11]}  a4 {[%clk 0:00:14]} 33. Kg2 {[%clk 0:00:12]}  Rc6 {[%clk 0:00:14]}
34. Ra1 {[%clk 0:00:09]}  Re6 {[%clk 0:00:10]} 35. Bd4 {[%clk 0:00:09]}  Bc6 {[%clk 0:00:11]} 36. Re5 {[%clk 0:00:09]}  Rxe5 {[%clk 0:00:11]}
37. Bxe5 {[%clk 0:00:09]}  Rd8 {[%clk 0:00:13]} 38. Ne3 {[%clk 0:00:09]}  Rd2 {[%clk 0:00:12]} 39. Bc4 {[%clk 0:00:09]}  a3 {[%clk 0:00:12]}
40. Bf4 {[%clk 0:00:08]}  Bc5 {[%clk 0:00:13]} 41. Ra2 {[%clk 0:00:05]}  Rxa2 {[%clk 0:00:11]} 42. Bxa2 {[%clk 0:00:06]}  b5 {[%clk 0:00:12]}
43. Bb3 {[%clk 0:00:05]}  Be8 {[%clk 0:00:12]} 44. Be5 {[%clk 0:00:06]}  Be7 {[%clk 0:00:11]} 45. Bc3 {[%clk 0:00:07]}  b4 {[%clk 0:00:12]}
46. Bd2 {[%clk 0:00:09]}  Kg7 {[%clk 0:00:13]} 47. Nc2 {[%clk 0:00:09]}  Bf7 {[%clk 0:00:14]} 48. Bxf7 {[%clk 0:00:09]}  Kxf7 {[%clk 0:00:15]}
49. Bxb4 {[%clk 0:00:10]}  Bxb4 {[%clk 0:00:16]} 50. Nxb4 {[%clk 0:00:11]}  Ke6 {[%clk 0:00:18]} 51. Na2 {[%clk 0:00:12]}  Ke5 {[%clk 0:00:19]}
52. Kf1 {[%clk 0:00:10]}  f4 {[%clk 0:00:20]} 53. Ke2 {[%clk 0:00:13]}  Kf5 {[%clk 0:00:21]} 54. Nc3 {[%clk 0:00:14]}  fxg3 {[%clk 0:00:19]} 0-1

[Event "2026 Biel Blitz Open"]
[Site "Biel, CH"]
[Date "2026.07.19"]
[Round "2"]
[White "Safarli, Eltaj"]
[Black "Bajraktari, Perparim"]
[Result "1-0"]
[Board "2"]
[TimeControl "180+2"]
[WhiteFideId "13402129"]
[BlackFideId "1307711"]
[WhiteElo "2619"]
[BlackElo "2045"]
[WhiteTitle "GM"]
[WhiteClock "0:00:37"]
[BlackClock "0:00:28"]
[Variant "Standard"]
[EndDate "2026.07.19"]
[EndTime "12:08:58"]

1. e4 {[%clk 0:03:02]}  g6 {[%clk 0:03:02]} 2. d4 {[%clk 0:03:02]}  Bg7 {[%clk 0:03:04]} 3. Nc3 {[%clk 0:03:03]}  d6 {[%clk 0:03:05]}
4. Nf3 {[%clk 0:03:03]}  c6 {[%clk 0:03:07]} 5. Be2 {[%clk 0:03:03]}  b5 {[%clk 0:03:08]} 6. O-O {[%clk 0:02:59]}  b4 {[%clk 0:03:09]}
7. Na4 {[%clk 0:03:00]}  Nf6 {[%clk 0:03:08]} 8. e5 {[%clk 0:03:01]}  Nd5 {[%clk 0:03:06]} 9. c4 {[%clk 0:02:49]}  bxc3 {[%clk 0:03:05]}
10. bxc3 {[%clk 0:02:49]}  O-O {[%clk 0:03:05]} 11. c4 {[%clk 0:02:48]}  Nb6 {[%clk 0:03:00]} 12. Nc3 {[%clk 0:02:47]}  dxe5 {[%clk 0:02:51]}
13. Nxe5 {[%clk 0:02:43]}  Qc7 {[%clk 0:02:50]} 14. Bf4 {[%clk 0:02:42]}  Qd8 {[%clk 0:02:38]} 15. Bf3 {[%clk 0:02:42]}  Bxe5 {[%clk 0:02:30]}
16. Bxe5 {[%clk 0:02:41]}  Nxc4 {[%clk 0:02:30]} 17. Bf4 {[%clk 0:02:42]}  Be6 {[%clk 0:02:26]} 18. d5 {[%clk 0:02:32]}  cxd5 {[%clk 0:02:23]}
19. Nxd5 {[%clk 0:02:33]}  Nd7 {[%clk 0:02:12]} 20. Nc7 {[%clk 0:01:47]}  Rc8 {[%clk 0:01:57]} 21. Nxe6 {[%clk 0:01:47]}  fxe6 {[%clk 0:01:58]}
22. Bh6 {[%clk 0:01:43]}  Rf7 {[%clk 0:01:44]} 23. Bg4 {[%clk 0:01:44]}  Rc6 {[%clk 0:01:28]} 24. Rc1 {[%clk 0:01:43]}  Rd6 {[%clk 0:01:11]}
25. Qb3 {[%clk 0:00:59]}  Nce5 {[%clk 0:01:11]} 26. Bxe6 {[%clk 0:00:59]}  Rb6 {[%clk 0:00:47]} 27. Bxf7+ {[%clk 0:00:39]}  Nxf7 {[%clk 0:00:49]}
28. Qe3 {[%clk 0:00:39]}  Nf6 {[%clk 0:00:39]} 29. Rfd1 {[%clk 0:00:39]}  Qe8 {[%clk 0:00:37]} 30. Bf4 {[%clk 0:00:39]}  e5 {[%clk 0:00:35]}
31. Bg3 {[%clk 0:00:39]}  Ng4 {[%clk 0:00:30]} 32. Qe4 {[%clk 0:00:38]}  h5 {[%clk 0:00:31]} 33. h3 {[%clk 0:00:38]}  Nf6 {[%clk 0:00:29]}
34. Qe3 {[%clk 0:00:39]}  Kg7 {[%clk 0:00:28]} 35. Rc7 {[%clk 0:00:40]}  Re6 {[%clk 0:00:26]} 36. Qxa7 {[%clk 0:00:38]}  e4 {[%clk 0:00:26]}
37. Bf4 {[%clk 0:00:36]}  g5 {[%clk 0:00:26]} 38. Bxg5 {[%clk 0:00:36]}  Kg6 {[%clk 0:00:24]} 39. Be3 {[%clk 0:00:36]}  Ne5 {[%clk 0:00:26]}
40. Rg7+ {[%clk 0:00:36]}  Kf5 {[%clk 0:00:28]} 41. Rg5# {[%clk 0:00:37]} 1-0

[Event "2026 Biel Blitz Open"]
[Site "Biel, CH"]
[Date "2026.07.19"]
[Round "2"]
[White "Nguyen Thi Mai Hung"]
[Black "Amonatov, Farrukh"]
[Result "0-1"]
[Board "3"]
[TimeControl "180+2"]
[WhiteFideId "12401676"]
[BlackFideId "14700077"]
[WhiteElo "2039"]
[BlackElo "2585"]
[WhiteTitle "WGM"]
[BlackTitle "GM"]
[WhiteClock "0:00:06"]
[BlackClock "0:00:26"]
[Variant "Standard"]
[EndDate "2026.07.19"]
[EndTime "12:10:04"]

1. d4 {[%clk 0:03:03]}  Nf6 {[%clk 0:03:03]} 2. Nf3 {[%clk 0:03:03]}  g6 {[%clk 0:03:04]} 3. g3 {[%clk 0:03:04]}  Bg7 {[%clk 0:03:05]}
4. Bg2 {[%clk 0:03:05]}  O-O {[%clk 0:03:05]} 5. O-O {[%clk 0:03:05]}  d6 {[%clk 0:03:06]} 6. a4 {[%clk 0:03:06]}  Nbd7 {[%clk 0:03:06]}
7. a5 {[%clk 0:03:07]}  a6 {[%clk 0:03:06]} 8. Re1 {[%clk 0:03:06]}  e5 {[%clk 0:03:07]} 9. Nc3 {[%clk 0:02:55]}  e4 {[%clk 0:02:53]}
10. Nd2 {[%clk 0:02:47]}  d5 {[%clk 0:02:46]} 11. Nb3 {[%clk 0:02:43]}  Re8 {[%clk 0:02:44]} 12. f3 {[%clk 0:02:07]}  exf3 {[%clk 0:01:47]}
13. exf3 {[%clk 0:02:08]}  Rxe1+ {[%clk 0:01:47]} 14. Qxe1 {[%clk 0:02:09]}  Nf8 {[%clk 0:01:48]} 15. Bf4 {[%clk 0:02:04]}  Nh5 {[%clk 0:01:39]}
16. Be3 {[%clk 0:01:47]}  Ne6 {[%clk 0:01:39]} 17. Qd2 {[%clk 0:01:47]}  c6 {[%clk 0:01:36]} 18. Re1 {[%clk 0:01:37]}  Bd7 {[%clk 0:01:37]}
19. Na4 {[%clk 0:01:29]}  Qc7 {[%clk 0:01:28]} 20. Bh6 {[%clk 0:01:18]}  Re8 {[%clk 0:01:18]} 21. Bxg7 {[%clk 0:01:13]}  Nhxg7 {[%clk 0:01:17]}
22. Nac5 {[%clk 0:00:58]}  Nxc5 {[%clk 0:01:13]} 23. Nxc5 {[%clk 0:00:58]}  Ne6 {[%clk 0:01:14]} 24. Nxe6 {[%clk 0:00:49]}  Bxe6 {[%clk 0:01:15]}
25. f4 {[%clk 0:00:46]}  b6 {[%clk 0:01:07]} 26. axb6 {[%clk 0:00:43]}  Qxb6 {[%clk 0:01:08]} 27. c3 {[%clk 0:00:44]}  a5 {[%clk 0:01:08]}
28. Bf3 {[%clk 0:00:33]}  Rb8 {[%clk 0:01:07]} 29. Re2 {[%clk 0:00:31]}  a4 {[%clk 0:01:06]} 30. Kg2 {[%clk 0:00:31]}  Bf5 {[%clk 0:01:04]}
31. g4 {[%clk 0:00:30]}  Bd7 {[%clk 0:01:03]} 32. Kg3 {[%clk 0:00:21]}  Qc7 {[%clk 0:01:00]} 33. h4 {[%clk 0:00:22]}  h6 {[%clk 0:00:54]}
34. Kg2 {[%clk 0:00:20]}  Qd6 {[%clk 0:00:50]} 35. Qc1 {[%clk 0:00:15]}  Qf6 {[%clk 0:00:48]} 36. Kg3 {[%clk 0:00:16]}  h5 {[%clk 0:00:39]}
37. g5 {[%clk 0:00:16]}  Qf5 {[%clk 0:00:40]} 38. Qf1 {[%clk 0:00:11]}  a3 {[%clk 0:00:35]} 39. bxa3 {[%clk 0:00:10]}  Rb3 {[%clk 0:00:36]}
40. Re5 {[%clk 0:00:09]}  Qc2 {[%clk 0:00:36]} 41. Re7 {[%clk 0:00:08]}  Be6 {[%clk 0:00:32]} 42. Qe2 {[%clk 0:00:06]}  Qxe2 {[%clk 0:00:24]}
43. Bxe2 {[%clk 0:00:07]}  Rxc3+ {[%clk 0:00:25]} 44. Kf2 {[%clk 0:00:08]}  Rxa3 {[%clk 0:00:26]} 45. Rc7 {[%clk 0:00:09]}  Rh3 {[%clk 0:00:26]}
46. Rxc6 {[%clk 0:00:07]}  Rxh4 {[%clk 0:00:26]} 47. Kg3 {[%clk 0:00:09]}  Rh3+ {[%clk 0:00:27]} 48. Kf2 {[%clk 0:00:10]}  Rh2+ {[%clk 0:00:27]}
49. Ke3 {[%clk 0:00:11]}  h4 {[%clk 0:00:28]} 50. Bf3 {[%clk 0:00:12]}  h3 {[%clk 0:00:26]} 51. Rc1 {[%clk 0:00:13]}  Ra2 {[%clk 0:00:27]}
52. Re1 {[%clk 0:00:11]}  Kg7 {[%clk 0:00:28]} 53. Re2 {[%clk 0:00:12]}  Ra3+ {[%clk 0:00:25]} 54. Kf2 {[%clk 0:00:13]}  Rd3 {[%clk 0:00:26]}
55. Re3 {[%clk 0:00:09]}  Rxd4 {[%clk 0:00:26]} 56. Kg3 {[%clk 0:00:10]}  Rd2 {[%clk 0:00:25]} 57. Re1 {[%clk 0:00:09]}  d4 {[%clk 0:00:24]}
58. Be4 {[%clk 0:00:08]}  d3 {[%clk 0:00:23]} 59. Re3 {[%clk 0:00:09]}  Re2 {[%clk 0:00:23]} 60. Rxe2 {[%clk 0:00:08]}  dxe2 {[%clk 0:00:24]}
61. Kf2 {[%clk 0:00:09]}  Bg4 {[%clk 0:00:24]} 62. Bh1 {[%clk 0:00:06]}  h2 {[%clk 0:00:23]} 63. Bd5 {[%clk 0:00:06]}  Kf8 {[%clk 0:00:24]}
64. Ke1 {[%clk 0:00:05]}  Ke7 {[%clk 0:00:25]} 65. Kf2 {[%clk 0:00:06]}  Kd6 {[%clk 0:00:26]} 0-1

[Event "2026 Biel Blitz Open"]
[Site "Biel, CH"]
[Date "2026.07.19"]
[Round "2"]
[White "Kozak, Adam"]
[Black "El-Mais, Ibaa"]
[Result "1-0"]
[Board "4"]
[TimeControl "180+2"]
[WhiteFideId "753246"]
[BlackFideId "1312715"]
[WhiteElo "2537"]
[BlackElo "2012"]
[WhiteTitle "GM"]
[WhiteClock "0:01:51"]
[BlackClock "0:00:06"]
[Variant "Standard"]
[EndDate "2026.07.19"]
[EndTime "12:05:50"]

1. d4 {[%clk 0:03:02]}  Nf6 {[%clk 0:03:03]} 2. c4 {[%clk 0:03:03]}  e6 {[%clk 0:03:03]} 3. Nc3 {[%clk 0:03:03]}  Bb4 {[%clk 0:03:04]}
4. e3 {[%clk 0:03:04]}  O-O {[%clk 0:03:03]} 5. Bd3 {[%clk 0:03:02]}  d5 {[%clk 0:03:01]} 6. a3 {[%clk 0:03:03]}  Bd6 {[%clk 0:02:59]}
7. Nf3 {[%clk 0:03:01]}  b6 {[%clk 0:02:56]} 8. O-O {[%clk 0:02:53]}  Bb7 {[%clk 0:02:50]} 9. b3 {[%clk 0:02:46]}  Nbd7 {[%clk 0:02:36]}
10. cxd5 {[%clk 0:02:45]}  exd5 {[%clk 0:02:26]} 11. Bb2 {[%clk 0:02:46]}  a6 {[%clk 0:02:14]} 12. Ne2 {[%clk 0:02:37]}  Ne4 {[%clk 0:02:06]}
13. Ne5 {[%clk 0:02:31]}  f6 {[%clk 0:01:12]} 14. Nxd7 {[%clk 0:02:18]}  Qxd7 {[%clk 0:01:13]} 15. f3 {[%clk 0:02:15]}  Ng5 {[%clk 0:01:12]}
16. Qd2 {[%clk 0:02:14]}  Rae8 {[%clk 0:00:46]} 17. Rae1 {[%clk 0:02:14]}  Qe7 {[%clk 0:00:41]} 18. Ng3 {[%clk 0:02:12]}  Bxa3 {[%clk 0:00:35]}
19. Bxa3 {[%clk 0:01:59]}  Qxa3 {[%clk 0:00:35]} 20. Qc2 {[%clk 0:02:00]}  h6 {[%clk 0:00:24]} 21. Qxc7 {[%clk 0:01:54]}  Qxb3 {[%clk 0:00:07]}
22. Bg6 {[%clk 0:01:53]}  Rc8 {[%clk 0:00:06]} 23. Qxb7 {[%clk 0:01:51]} 1-0

[Event "2026 Biel Blitz Open"]
[Site "Biel, CH"]
[Date "2026.07.19"]
[Round "2"]
[White "Rappazzo, Johannes"]
[Black "Ghosh, Diptayan"]
[Result "1/2-1/2"]
[Board "5"]
[TimeControl "180+2"]
[WhiteFideId "1340069"]
[BlackFideId "5045207"]
[WhiteElo "2032"]
[BlackElo "2530"]
[WhiteTitle "FM"]
[BlackTitle "GM"]
[WhiteClock "0:00:06"]
[BlackClock "0:00:11"]
[Variant "Standard"]
[EndDate "2026.07.19"]
[EndTime "12:08:48"]

1. e4 {[%clk 0:03:03]}  e5 {[%clk 0:03:02]} 2. Nf3 {[%clk 0:03:05]}  Nc6 {[%clk 0:03:03]} 3. Bc4 {[%clk 0:03:06]}  Nf6 {[%clk 0:03:03]}
4. d4 {[%clk 0:03:07]}  exd4 {[%clk 0:03:04]} 5. e5 {[%clk 0:03:09]}  d5 {[%clk 0:03:05]} 6. Bb5 {[%clk 0:03:10]}  Nd7 {[%clk 0:03:06]}
7. Bxc6 {[%clk 0:03:09]}  bxc6 {[%clk 0:03:06]} 8. Nxd4 {[%clk 0:03:10]}  Nb8 {[%clk 0:03:07]} 9. O-O {[%clk 0:03:10]}  Be7 {[%clk 0:03:08]}
10. Qf3 {[%clk 0:03:08]}  O-O {[%clk 0:03:07]} 11. Nc3 {[%clk 0:03:07]}  a5 {[%clk 0:03:06]} 12. Re1 {[%clk 0:03:01]}  Ra6 {[%clk 0:03:01]}
13. Bf4 {[%clk 0:02:38]}  c5 {[%clk 0:02:47]} 14. Nde2 {[%clk 0:02:27]}  d4 {[%clk 0:02:44]} 15. Rad1 {[%clk 0:02:16]}  Rg6 {[%clk 0:02:42]}
16. h3 {[%clk 0:02:10]}  Nc6 {[%clk 0:02:41]} 17. Ng3 {[%clk 0:02:02]}  Nb4 {[%clk 0:02:30]} 18. Qe2 {[%clk 0:01:56]}  Ba6 {[%clk 0:02:29]}
19. Qe4 {[%clk 0:01:47]}  Re8 {[%clk 0:01:41]} 20. a3 {[%clk 0:01:47]}  Nc6 {[%clk 0:01:40]} 21. Nd5 {[%clk 0:01:41]}  Bf8 {[%clk 0:01:41]}
22. Qf3 {[%clk 0:01:33]}  Bb7 {[%clk 0:01:27]} 23. c4 {[%clk 0:01:33]}  a4 {[%clk 0:01:22]} 24. Qd3 {[%clk 0:01:14]}  Na5 {[%clk 0:01:21]}
25. h4 {[%clk 0:00:41]}  Nxc4 {[%clk 0:01:08]} 26. Nf6+ {[%clk 0:00:36]}  gxf6 {[%clk 0:00:58]} 27. Qxc4 {[%clk 0:00:36]}  Rg4 {[%clk 0:00:42]}
28. e6 {[%clk 0:00:26]}  Qd5 {[%clk 0:00:16]} 29. Qxd5 {[%clk 0:00:18]}  Bxd5 {[%clk 0:00:17]} 30. exf7+ {[%clk 0:00:20]}  Kxf7 {[%clk 0:00:18]}
31. Bxc7 {[%clk 0:00:21]}  Rxe1+ {[%clk 0:00:07]} 32. Rxe1 {[%clk 0:00:22]}  c4 {[%clk 0:00:08]} 33. f3 {[%clk 0:00:18]}  Rg8 {[%clk 0:00:04]}
34. Nf5 {[%clk 0:00:15]}  Be6 {[%clk 0:00:06]} 35. Nxd4 {[%clk 0:00:12]}  Bc5 {[%clk 0:00:07]} 36. Rd1 {[%clk 0:00:13]}  Rc8 {[%clk 0:00:05]}
37. Ba5 {[%clk 0:00:15]}  Rb8 {[%clk 0:00:04]} 38. Bc3 {[%clk 0:00:16]}  Rg8 {[%clk 0:00:04]} 39. Kf1 {[%clk 0:00:16]}  Rd8 {[%clk 0:00:04]}
40. Ke2 {[%clk 0:00:18]}  Bd5 {[%clk 0:00:05]} 41. Nf5 {[%clk 0:00:14]}  Ke6 {[%clk 0:00:06]} 42. Ng7+ {[%clk 0:00:16]}  Kf7 {[%clk 0:00:08]}
43. Nf5 {[%clk 0:00:17]}  Ke6 {[%clk 0:00:09]} 44. Ng7+ {[%clk 0:00:19]}  Kf7 {[%clk 0:00:11]} 45. Nf5 {[%clk 0:00:06]}  Ke8 {[%clk 0:00:11]} 1/2-1/2